fUST/lending_fUST_20250816
["ID","MTS","AMOUNT","RATE_DAILY","PERIOD"]
[379544856,1755325857106,-480.0,0.00022739,3]
[379544857,1755325857115,-582.99,0.00022739,3]
[379544858,1755325857125,-499.02,0.00022739,3]
[379544859,1755325857138,-480.0,0.00022739,3]
[379544860,1755325857147,-480.0,0.00022739,3]
[379544861,1755325857156,-3258.78,0.00022739,3]
[379544862,1755325857166,-581.54,0.00022739,3]
[379544863,1755325857186,-869.89,0.00022739,3]
[379544864,1755325857198,-3677.96,0.00022739,3]
[379544865,1755325857207,-480.0,0.00022739,3]
[379544866,1755325857216,-517.97,0.00022739,3]
[379544867,1755325857226,-260.06358525,0.00022739,3]
[379544868,1755325857235,-1885.76,0.00022739,3]
[379544869,1755325857245,-480.0,0.00022739,3]
[379544870,1755325857254,-755.5,0.00022739,3]
[379544871,1755325857263,-480.0,0.00022739,3]
[379544872,1755325857272,-480.0,0.00022739,3]
[379544873,1755325857281,-480.0,0.00022739,3]
[379544874,1755325857289,-2144.06,0.00022739,3]
[379544875,1755325857299,-662.53,0.00022739,3]
[379544876,1755325857307,-308.3439525,0.0002274,2]
[379544877,1755325857316,-315.9303604,0.0002274,2]
[379544878,1755325857325,-3000.0,0.0002274,2]
[379544879,1755325857334,-3000.0,0.0002275,2]
[379544880,1755325857346,-3000.0,0.0002276,2]
[379544881,1755325857355,-3607.738253,0.0002277,2]
[379544882,1755325857364,-150.0,0.00022773,2]
[379544883,1755325857373,-150.0,0.00022773,2]
[379544884,1755325857382,-15957.38,0.000228,2]
[379544885,1755325857391,-151.0,0.000228,7]
[379544886,1755325857399,-151.0,0.000228,7]
[379544887,1755325857408,-151.0,0.000228,7]
[379544888,1755325857417,-151.0,0.000228,7]
[379544889,1755325857426,-160.0,0.000228,2]
[379544890,1755325857436,-460.0,0.00022802,2]
[379544891,1755325857445,-5554.350619,0.00022813,7]
[379544892,1755325857455,-460.0,0.00022848,2]
[379544893,1755325857463,-460.0,0.00022891,2]
[379544894,1755325857472,-1165.02458137,0.00022948,2]
[379544895,1755325857481,-160.0,0.00023,2]
[379544896,1755325857490,-216.80276362,0.00023,3]
[379544897,1755325857499,-843.58077381,0.00023,3]
[379544898,1755325857507,-2000.86634156,0.00023,2]
[379544899,1755325857517,-5065.59587876,0.00023,2]
[379544900,1755325857530,-1341.80097213,0.00023,2]
[379544901,1755325857539,-160.0,0.00023,3]
[379544902,1755325857548,-800.0,0.00023005,2]
[379544903,1755325857557,-200.49264809,0.00023012,2]
[379544904,1755325857565,-300.80260306,0.00023012,2]
[379544905,1755325857574,-500.0,0.00023013,3]
[379544906,1755325857583,-400.0,0.00023013,3]
[379544907,1755325857592,-480.0,0.00023013,3]
[379544908,1755325857600,-151.0,0.00023013,7]
[379544909,1755325857609,-480.0,0.00023013,3]
[379544910,1755325857618,-440.0,0.00023013,3]
[379544911,1755325857627,-531.7,0.00023013,3]
[379544912,1755325857636,-480.0,0.00023013,3]
[379544913,1755325857644,-480.0,0.00023013,3]
[379544914,1755325857653,-480.0,0.00023013,3]
[379544915,1755325857665,-480.0,0.00023013,3]
[379544916,1755325857674,-224.29925035,0.00023013,3]
[379544917,1755325857683,-480.0,0.00023013,3]
[379544918,1755325857692,-480.0,0.00023013,3]
[379544919,1755325857701,-620.08813458,0.00023013,3]
[379544920,1755325857710,-480.0,0.00023013,3]
[379544921,1755325857718,-480.0,0.00023013,3]
[379544922,1755325857727,-480.0,0.00023013,3]
[379544923,1755325857736,-547.06861515,0.00023013,3]
[379544924,1755325857744,-480.0,0.00023013,3]
[379544925,1755325857753,-1304.87,0.00023013,3]
[379544926,1755325857762,-480.0,0.00023013,3]
[379544927,1755325857771,-160.0,0.00023013,3]
[379544928,1755325857780,-480.0,0.00023013,3]
[379544929,1755325857789,-480.0,0.00023013,3]
[379544930,1755325857798,-480.0,0.00023013,3]
[379544931,1755325857807,-480.0,0.00023013,3]
[379544932,1755325857816,-238.18,0.00023013,3]
[379544933,1755325857825,-897.72,0.00023013,3]
[379544934,1755325857833,-507.98,0.00023013,3]
[379544935,1755325857843,-480.0,0.00023013,3]
[379544936,1755325857852,-480.0,0.00023013,3]
[379544937,1755325857860,-480.0,0.00023013,3]
[379544938,1755325857869,-480.0,0.00023013,3]
[379544939,1755325857879,-151.0,0.00023013,7]
[379544940,1755325857887,-606.11302684,0.00023013,3]
[379544941,1755325857896,-480.0,0.00023013,3]
[379544942,1755325857905,-480.0,0.00023013,3]
[379544943,1755325857914,-580.96115872,0.00023013,3]
[379544944,1755325857923,-480.0,0.00023013,3]
[379544945,1755325857933,-480.0,0.00023013,3]
[379544946,1755325857942,-480.0,0.00023013,3]
[379544947,1755325857952,-480.0,0.00023013,3]
[379544948,1755325857961,-1096.7,0.00023013,3]
[379544949,1755325857970,-480.0,0.00023013,3]
[379544950,1755325857979,-480.0,0.00023013,3]
[379544951,1755325857990,-480.0,0.00023013,3]
[379544952,1755325858001,-480.0,0.00023013,3]
[379544953,1755325858010,-488.34991484,0.00023013,3]
[379544954,1755325858020,-480.0,0.00023013,3]
[379544955,1755325858029,-480.0,0.00023013,3]
[379544956,1755325858039,-480.0,0.00023013,3]
[379544957,1755325858048,-480.0,0.00023013,3]
[379544958,1755325858057,-480.0,0.00023013,3]
[379544959,1755325858066,-567.22,0.00023013,3]
[379544960,1755325858076,-480.0,0.00023013,3]
[379544961,1755325858085,-480.0,0.00023013,3]
[379544962,1755325858094,-360.0,0.00023013,3]
[379544963,1755325858104,-630.86,0.00023013,3]
[379544964,1755325858113,-480.0,0.00023013,3]
[379544965,1755325858122,-521.5,0.00023013,3]
[379544966,1755325858132,-921.87,0.00023013,3]
[379544967,1755325858141,-480.0,0.00023013,3]
[379544968,1755325858151,-1883.66,0.00023013,3]
[379544969,1755325858160,-790.29,0.00023013,3]
[379544970,1755325858169,-480.0,0.00023013,3]
[379544971,1755325858179,-480.0,0.00023013,3]
[379544972,1755325858190,-480.0,0.00023013,3]
[379544973,1755325858199,-873.53,0.00023013,3]
[379544974,1755325858208,-582.63,0.00023013,3]
[379544975,1755325858217,-480.0,0.00023013,3]
[379544976,1755325858227,-300.59260042,0.00023013,3]
[379544977,1755325858236,-480.0,0.00023013,3]
[379544978,1755325858246,-480.0,0.00023013,3]
[379544979,1755325858255,-440.0,0.00023013,3]
[379544980,1755325858264,-301.92400709,0.00023013,2]
[379544981,1755325858274,-480.0,0.00023013,3]
[379544982,1755325858283,-580.0,0.00023013,3]
[379544983,1755325858292,-665.42,0.00023013,3]
[379544984,1755325858301,-440.0,0.00023013,3]
[379544985,1755325858310,-210.82974508,0.00023013,3]
[379544986,1755325858320,-480.0,0.00023013,3]
[379544987,1755325858329,-5312.59,0.00023013,3]
[379544988,1755325858338,-480.0,0.00023013,3]
[379544989,1755325858352,-480.0,0.00023013,3]
[379544990,1755325858360,-788.36,0.00023013,3]
[379544991,1755325858370,-480.0,0.00023013,3]
[379544993,1755325858379,-480.0,0.00023013,3]
[379544994,1755325858388,-420.0,0.00023013,3]
[379544995,1755325858398,-600.0,0.00023013,3]
[379544996,1755325858407,-480.0,0.00023013,3]
[379544997,1755325858416,-537.08,0.00023013,3]
[379544998,1755325858429,-151.0,0.00023013,7]
[379544999,1755325858438,-151.0,0.00023013,7]
[379545000,1755325858448,-2518.97,0.00023013,3]
[379545001,1755325858457,-151.0,0.00023013,7]
[379545002,1755325858466,-156.64606735,0.00023013,3]
[379545003,1755325858475,-151.0,0.00023013,7]
[379545004,1755325858484,-480.0,0.00023013,3]
[379545005,1755325858493,-522.01,0.00023013,3]
[379545006,1755325858503,-480.0,0.00023013,3]
[379545007,1755325858513,-480.0,0.00023013,3]
[379545008,1755325858522,-456.68779725,0.00023013,3]
[379545009,1755325858532,-480.0,0.00023013,3]
[379545010,1755325858542,-151.0,0.00023013,7]
[379545011,1755325858551,-480.0,0.00023013,3]
[379545012,1755325858561,-232.76,0.00023013,3]
[379545013,1755325858570,-480.0,0.00023013,3]
[379545014,1755325858580,-480.0,0.00023013,3]
[379545015,1755325858589,-1092.468622,0.00023013,7]
[379545016,1755325858598,-380.0,0.00023013,3]
[379545017,1755325858608,-488.4,0.00023013,3]
[379545018,1755325858617,-1092.468622,0.00023013,7]
[379545019,1755325858626,-480.0,0.00023013,3]
[379545020,1755325858636,-4778.29,0.00023013,3]
[379545021,1755325858645,-480.0,0.00023013,3]
[379545022,1755325858655,-480.0,0.00023013,3]
[379545023,1755325858664,-480.0,0.00023013,3]
[379545024,1755325858673,-480.0,0.00023013,3]
[379545025,1755325858684,-609.61,0.00023013,3]
[379545026,1755325858694,-471.62689906,0.00023013,3]
[379545027,1755325858703,-1203.26,0.00023013,3]
[379545028,1755325858712,-1187.37,0.00023013,3]
[379545029,1755325858722,-544.80145868,0.00023013,3]
[379545030,1755325858731,-1759.99,0.00023013,3]
[379545031,1755325858740,-1222.52,0.00023013,3]
[379545032,1755325858751,-480.0,0.00023013,3]
[379545033,1755325858760,-480.0,0.00023013,3]
[379545034,1755325858769,-539.904416,0.00023013,7]
[379545035,1755325858779,-3413.77,0.00023013,3]
[379545036,1755325858788,-539.904416,0.00023013,7]
[379545037,1755325858798,-480.0,0.00023013,3]
[379545038,1755325858808,-160.160025,0.00023013,7]
[379545039,1755325858817,-480.0,0.00023013,3]
[379545040,1755325858826,-380.0,0.00023013,3]
[379545041,1755325858836,-160.160025,0.00023013,7]
[379545042,1755325858845,-8503.19,0.00023013,3]
[379545043,1755325858854,-480.0,0.00023013,3]
[379545044,1755325858863,-445.44,0.00023013,3]
[379545045,1755325858872,-554.42183524,0.00023013,3]
[379545046,1755325858882,-2453.46,0.00023013,3]
[379545047,1755325858891,-480.0,0.00023013,3]
[379545048,1755325858900,-533.25,0.00023013,3]
[379545049,1755325858909,-823.47,0.00023013,3]
[379545050,1755325858918,-480.0,0.00023013,3]
[379545051,1755325858928,-813.04,0.00023013,3]
[379545052,1755325858938,-503.31,0.00023013,3]
[379545053,1755325858947,-480.0,0.00023013,3]
[379545054,1755325858956,-805.96,0.00023013,3]
[379545055,1755325858966,-480.0,0.00023013,3]
[379545056,1755325858975,-480.0,0.00023013,3]
[379545057,1755325858984,-542.44,0.00023013,3]
[379545058,1755325858994,-673.93,0.00023013,3]
[379545059,1755325859003,-480.0,0.00023013,3]
[379545060,1755325859013,-480.0,0.00023013,3]
[379545061,1755325859022,-480.0,0.00023013,3]
[379545062,1755325859031,-582.99,0.00023013,3]
[379545063,1755325859042,-499.02,0.00023013,3]
[379545064,1755325859051,-466.18,0.00023013,3]
[379545065,1755325859060,-616.90706535,0.00023013,3]
[379545066,1755325859070,-3258.78,0.00023013,3]
[379545067,1755325859079,-869.89,0.00023013,3]
[379545068,1755325859088,-3677.96,0.00023013,3]
[379545069,1755325859098,-480.0,0.00023013,3]
[379545070,1755325859108,-517.97,0.00023013,3]
[379545071,1755325859117,-1885.76,0.00023013,3]
[379545072,1755325859126,-480.0,0.00023013,3]
[379545073,1755325859135,-755.5,0.00023013,3]
[379545074,1755325859144,-453.10284413,0.00023013,3]
[379545075,1755325859154,-480.0,0.00023013,3]
[379545076,1755325859163,-480.0,0.00023013,3]
[379545077,1755325859172,-2144.06,0.00023013,3]
[379545078,1755325859181,-662.53,0.00023013,3]
[379545079,1755325859190,-800.0,0.00023018,2]
[379545080,1755325859200,-500.0,0.0002302,2]
[379545081,1755325859209,-500.0,0.0002302,10]
[379545082,1755325859318,-500.0,0.0002302,2]
[379545083,1755325859339,-627.65351401,0.0002302,2]
[379545084,1755325859352,-500.0,0.0002302,2]
[379545085,1755325859361,-500.0,0.0002302,10]
[379545086,1755325859370,-500.0,0.0002302,2]
[379545087,1755325859380,-500.0,0.0002302,10]
[379545088,1755325859390,-500.0,0.0002302,2]
[379545089,1755325859399,-500.0,0.0002302,10]
[379545090,1755325859409,-500.0,0.0002302,2]
[379545091,1755325859418,-500.0,0.0002302,10]
[379545092,1755325859429,-500.0,0.0002302,2]
[379545093,1755325859439,-500.0,0.0002302,10]
[379545094,1755325859448,-500.0,0.0002302,2]
[379545095,1755325859458,-460.0,0.00023046,2]
[379545096,1755325859468,-800.0,0.00023054,2]
[379545097,1755325859478,-1500.0,0.00023068,2]
[379545098,1755325859487,-1018.27173056,0.00023073,2]
[379545099,1755325859497,-318.0,0.00023081,2]
[379545100,1755325859507,-645.0,0.000231,2]
[379545101,1755325859516,-800.0,0.00023144,2]
[379545102,1755325859526,-163.033401,0.00023163,7]
[379545103,1755325859535,-163.033401,0.00023163,7]
[379545104,1755325859546,-151.0,0.00023163,7]
[379545105,1755325859555,-151.0,0.00023163,7]
[379545106,1755325859564,-151.0,0.00023163,7]
[379545107,1755325859574,-172.119485,0.00023163,7]
[379545108,1755325859583,-172.119485,0.00023163,7]
[379545109,1755325859592,-557.47,0.00023163,2]
[379545110,1755325859601,-1002.28409,0.000232,2]
[379545111,1755325859611,-190.933692,0.000232,2]
[379545112,1755325859620,-460.0,0.00023218,2]
[379545113,1755325859629,-460.0,0.00023242,2]
[379545114,1755325859638,-1500.0,0.00023268,2]
[379545115,1755325859647,-1500.0,0.00023268,2]
[379545116,1755325859656,-1500.0,0.00023268,2]
[379545117,1755325859665,-774.27990214,0.00023268,2]
[379545118,1755325859675,-1500.0,0.00023268,2]
[379545119,1755325859684,-1500.0,0.00023268,2]
[379545120,1755325859694,-1000.66280109,0.00023268,2]
[379545121,1755325859704,-460.0,0.00023274,2]
[379545122,1755325859713,-300.0,0.00023286,2]
[379545123,1755325859723,-304.03518094,0.00023287,3]
[379545124,1755325859732,-217.753691,0.00023287,7]
[379545125,1755325859743,-151.0,0.00023287,7]
[379545126,1755325859752,-151.0,0.00023287,7]
[379545127,1755325859761,-151.0,0.00023287,7]
[379545128,1755325859771,-151.0,0.00023287,7]
[379545129,1755325859780,-151.0,0.00023287,7]
[379545130,1755325859789,-151.0,0.00023287,7]
[379545131,1755325859798,-151.0,0.00023287,7]
[379545132,1755325859808,-151.0,0.00023287,7]
[379545133,1755325859818,-151.0,0.00023287,7]
[379545134,1755325859827,-151.0,0.00023287,7]
[379545135,1755325859836,-151.0,0.00023287,7]
[379545136,1755325859845,-151.0,0.00023287,7]
[379545137,1755325859854,-151.0,0.00023287,7]
[379545138,1755325859864,-151.0,0.00023287,7]
[379545139,1755325859873,-151.0,0.00023287,7]
[379545140,1755325859882,-154.255852,0.00023287,7]
[379545141,1755325859891,-151.0,0.00023287,7]
[379545142,1755325859901,-205.846363,0.00023287,7]
[379545143,1755325859910,-205.846363,0.00023287,7]
[379545144,1755325859919,-151.0,0.00023287,7]
[379545145,1755325859928,-151.0,0.00023287,7]
[379545146,1755325859939,-151.0,0.00023287,7]
[379545147,1755325859948,-151.0,0.00023287,7]
[379545148,1755325859957,-151.0,0.00023287,7]
[379545149,1755325859967,-151.988991,0.00023287,7]
[379545150,1755325859976,-291.780469,0.00023287,7]
[379545151,1755325859985,-291.780469,0.00023287,7]
[379545152,1755325859994,-151.0,0.00023287,7]
[379545153,1755325860003,-151.0,0.00023287,7]
[379545154,1755325860014,-155.515332,0.00023287,7]
[379545155,1755325860023,-151.0,0.00023287,7]
[379545156,1755325860033,-608.04292298,0.00023287,3]
[379545157,1755325860043,-719.054567,0.00023287,7]
[379545158,1755325860052,-335.1457587,0.00023287,3]
[379545159,1755325860062,-719.054567,0.00023287,7]
[379545160,1755325860071,-531.7,0.00023287,3]
[379545161,1755325860080,-480.0,0.00023287,3]
[379545162,1755325860090,-480.0,0.00023287,3]
[379545163,1755325860099,-480.0,0.00023287,3]
[379545164,1755325860108,-480.0,0.00023287,3]
[379545165,1755325860118,-480.0,0.00023287,3]
[379545166,1755325860127,-391.5,0.00023287,3]
[379545167,1755325860136,-406.87348867,0.00023287,3]
[379545168,1755325860145,-480.0,0.00023287,3]
[379545169,1755325860155,-317.64734453,0.00023287,3]
[379545170,1755325860164,-565.09179855,0.00023287,3]
[379545171,1755325860173,-1304.87,0.00023287,3]
[379545172,1755325860182,-480.0,0.00023287,3]
[379545173,1755325860191,-540.0,0.00023287,3]
[379545174,1755325860201,-480.0,0.00023287,3]
[379545175,1755325860211,-480.0,0.00023287,3]
[379545176,1755325860222,-480.0,0.00023287,3]
[379545177,1755325860231,-897.72,0.00023287,3]
[379545178,1755325860241,-507.98,0.00023287,3]
[379545179,1755325860251,-480.0,0.00023287,3]
[379545180,1755325860261,-480.0,0.00023287,3]
[379545181,1755325860270,-151.0,0.00023287,7]
[379545182,1755325860280,-480.0,0.00023287,3]
[379545183,1755325860289,-151.0,0.00023287,7]
[379545184,1755325860299,-480.0,0.00023287,3]
[379545185,1755325860308,-151.0,0.00023287,7]
[379545186,1755325860317,-151.0,0.00023287,7]
[379545187,1755325860327,-480.0,0.00023287,3]
[379545188,1755325860336,-480.0,0.00023287,3]
[379545189,1755325860350,-414.79452101,0.00023287,3]
[379545190,1755325860360,-480.0,0.00023287,3]
[379545191,1755325860369,-480.0,0.00023287,3]
[379545192,1755325860379,-480.0,0.00023287,3]
[379545193,1755325860390,-1096.7,0.00023287,3]
[379545194,1755325860399,-480.0,0.00023287,3]
[379545195,1755325860408,-480.0,0.00023287,3]
[379545196,1755325860418,-480.0,0.00023287,3]
[379545197,1755325860428,-480.0,0.00023287,3]
[379545198,1755325860437,-480.0,0.00023287,3]
[379545199,1755325860447,-480.0,0.00023287,3]
[379545200,1755325860463,-185.246722,0.00023287,7]
[379545201,1755325860477,-480.0,0.00023287,3]
[379545202,1755325860490,-480.0,0.00023287,3]
[379545203,1755325860504,-185.246722,0.00023287,7]
[379545204,1755325860517,-480.0,0.00023287,3]
[379545205,1755325860532,-567.22,0.00023287,3]
[379545206,1755325860546,-480.0,0.00023287,3]
[379545207,1755325860560,-480.0,0.00023287,3]
[379545208,1755325860574,-630.86,0.00023287,3]
[379545209,1755325860587,-480.0,0.00023287,3]
[379545210,1755325860599,-521.5,0.00023287,3]
[379545211,1755325860614,-921.87,0.00023287,3]
[379545212,1755325860626,-207.205123,0.00023287,7]
[379545213,1755325860639,-480.0,0.00023287,3]
[379545214,1755325860651,-1883.66,0.00023287,3]
[379545215,1755325860663,-207.205123,0.00023287,7]
[379545216,1755325860677,-790.29,0.00023287,3]
[379545217,1755325860692,-433.99255576,0.00023287,3]
[379545218,1755325860708,-480.0,0.00023287,3]
[379545219,1755325860722,-480.0,0.00023287,3]
[379545220,1755325860737,-873.53,0.00023287,3]
[379545221,1755325860749,-582.63,0.00023287,3]
[379545222,1755325860762,-480.0,0.00023287,3]
[379545223,1755325860778,-480.0,0.00023287,3]
[379545224,1755325860792,-480.0,0.00023287,3]
[379545225,1755325860804,-480.0,0.00023287,3]
[379545226,1755325860817,-665.42,0.00023287,3]
[379545227,1755325860831,-480.0,0.00023287,3]
[379545228,1755325860844,-5312.59,0.00023287,3]
[379545229,1755325860856,-480.0,0.00023287,3]
[379545230,1755325860868,-151.0,0.00023287,7]
[379545231,1755325860881,-151.0,0.00023287,7]
[379545232,1755325860894,-594.19,0.00023287,3]
[379545233,1755325860906,-788.36,0.00023287,3]
[379545234,1755325860918,-480.0,0.00023287,3]
[379545235,1755325860931,-480.0,0.00023287,3]
[379545236,1755325860944,-480.0,0.00023287,3]
[379545237,1755325860957,-537.08,0.00023287,3]
[379545238,1755325860970,-151.0,0.00023287,7]
[379545239,1755325860982,-151.0,0.00023287,7]
[379545240,1755325860997,-2518.97,0.00023287,3]
[379545241,1755325861009,-151.0,0.00023287,7]
[379545242,1755325861021,-151.0,0.00023287,7]
[379545243,1755325861033,-480.0,0.00023287,3]
[379545244,1755325861046,-522.01,0.00023287,3]
[379545245,1755325861058,-480.0,0.00023287,3]
[379545246,1755325861070,-480.0,0.00023287,3]
[379545247,1755325861082,-480.0,0.00023287,3]
[379545248,1755325861094,-480.0,0.00023287,3]
[379545249,1755325861106,-480.0,0.00023287,3]
[379545250,1755325861118,-480.0,0.00023287,3]
[379545251,1755325861130,-1092.468622,0.00023287,7]
[379545252,1755325861142,-488.4,0.00023287,3]
[379545253,1755325861154,-1092.468622,0.00023287,7]
[379545254,1755325861166,-480.0,0.00023287,3]
[379545255,1755325861178,-4778.29,0.00023287,3]
[379545256,1755325861190,-480.0,0.00023287,3]
[379545257,1755325861202,-480.0,0.00023287,3]
[379545258,1755325861214,-560.0,0.00023287,3]
[379545259,1755325861226,-164.07,0.00023287,3]
[379545260,1755325861239,-609.61,0.00023287,3]
[379545261,1755325861252,-1203.26,0.00023287,3]
[379545262,1755325861264,-1187.37,0.00023287,3]
[379545263,1755325861276,-1759.99,0.00023287,3]
[379545264,1755325861289,-1222.52,0.00023287,3]
[379545265,1755325861300,-556.83682098,0.00023287,3]
[379545266,1755325861313,-480.0,0.00023287,3]
[379545267,1755325861325,-539.904416,0.00023287,7]
[379545268,1755325861337,-3413.77,0.00023287,3]
[379545269,1755325861352,-539.904416,0.00023287,7]
[379545270,1755325861365,-480.0,0.00023287,3]
[379545271,1755325861377,-480.0,0.00023287,3]
[379545272,1755325861390,-8503.19,0.00023287,3]
[379545273,1755325861403,-480.0,0.00023287,3]
[379545274,1755325861414,-2453.46,0.00023287,3]
[379545275,1755325861426,-480.0,0.00023287,3]
[379545276,1755325861438,-533.25,0.00023287,3]
[379545277,1755325861451,-823.47,0.00023287,3]
[379545278,1755325861463,-578.36467572,0.00023287,3]
[379545279,1755325861475,-813.04,0.00023287,3]
[379545280,1755325861488,-503.31,0.00023287,3]
[379545281,1755325861501,-474.92,0.00023287,3]
[379545282,1755325861513,-805.96,0.00023287,3]
[379545283,1755325861525,-480.0,0.00023287,3]
[379545284,1755325861536,-480.0,0.00023287,3]
[379545285,1755325861548,-542.44,0.00023287,3]
[379545286,1755325861560,-673.93,0.00023287,3]
[379545287,1755325861572,-480.0,0.00023287,3]
[379545288,1755325861584,-480.0,0.00023287,3]
[379545289,1755325861595,-480.0,0.00023287,3]
[379545290,1755325861607,-582.99,0.00023287,3]
[379545291,1755325861619,-499.02,0.00023287,3]
[379545292,1755325861630,-3258.78,0.00023287,3]
[379545293,1755325861643,-869.89,0.00023287,3]
[379545294,1755325861655,-3677.96,0.00023287,3]
[379545295,1755325861667,-480.0,0.00023287,3]
[379545296,1755325861679,-517.97,0.00023287,3]
[379545297,1755325861691,-1885.76,0.00023287,3]
[379545298,1755325861703,-480.0,0.00023287,3]
[379545299,1755325861715,-755.5,0.00023287,3]
[379545300,1755325861727,-480.0,0.00023287,3]
[379545301,1755325861739,-480.0,0.00023287,3]
[379545302,1755325861751,-2144.06,0.00023287,3]
[379545303,1755325861763,-662.53,0.00023287,3]
[379545304,1755325861775,-160.160025,0.000233,7]
[379545305,1755325861787,-160.160025,0.000233,7]
[379545306,1755325861799,-300.0,0.00023321,2]
[379545307,1755325861810,-250.0,0.00023321,2]
[379545308,1755325861822,-206.961774,0.00023347,7]
[379545309,1755325861832,-206.961774,0.00023347,7]
[379545310,1755325861842,-260.0,0.00023348,2]
[379545311,1755325861851,-9442.96,0.000234,7]
[379545312,1755325861861,-152.500162,0.000234,7]
[379545313,1755325862057,-1165.02458137,0.00023456,2]
[379545314,1755325862068,-603.06448584,0.00023461,2]
[379545315,1755325862078,-460.0,0.00023463,2]
[379545316,1755325862087,-500.0,0.00023473,2]
[379545317,1755325862096,-500.0,0.00023473,2]
[379545318,1755325862105,-151.0,0.00023473,7]
[379545319,1755325862114,-175.0,0.00023474,2]
[379545320,1755325862123,-460.0,0.00023477,2]
[379545321,1755325862132,-28449.70680769,0.000235,14]
[379545322,1755325862423,-460.0,0.00021917,3]
[379545323,1755325862433,-440.0,0.00022191,3]
[379545324,1755325862443,-151.0,0.00022191,7]
[379545325,1755325862452,-151.0,0.00022465,7]
[379545326,1755325862462,-151.0,0.00022465,7]
[379545327,1755325862471,-151.0,0.00022739,7]
[379545328,1755325862480,-151.0,0.00023013,7]
[379545329,1755325862491,-151.0,0.00023287,7]
[379545330,1755325862501,-1957.4800851,0.000235,14]
[379545331,1755325862516,-3630.21671336,0.000235,14]
[379545332,1755325862570,-351.59094771,0.00021698,2]
[379545333,1755325862990,-2084.21484626,0.00021698,2]
[379545334,1755325906739,150.0,0.00019088,2]
[379545342,1755325966966,304.271897,0.00013699,2]
[379545345,1755325990532,150.0,0.00019184,2]
[379545362,1755326036457,3976.87694968,0.00019881,2]
[379545363,1755326036481,1023.12305032,0.00019881,2]
[379545370,1755326051795,5000.0,0.00019881,2]
[379545376,1755326067347,3976.87694968,0.00019881,2]
[379545377,1755326067373,1023.12305032,0.00019881,2]
[379545379,1755326072512,150.0,0.00019179,2]
[379545380,1755326083589,5000.0,0.00019881,2]
[379545381,1755326098961,3826.87694968,0.00019881,2]
[379545382,1755326098993,1173.12305032,0.00019881,2]
[379545384,1755326114995,5000.0,0.00019881,2]
[379545388,1755326130573,3826.87694968,0.00019881,2]
[379545389,1755326130598,1173.12305032,0.00019881,2]
[379545392,1755326146220,5000.0,0.00019881,2]
[379545394,1755326155590,150.0,0.00018756,2]
[379545395,1755326156041,150.0,0.00019649,2]
[379545397,1755326163030,2016.36033437,0.00019881,2]
[379545410,1755326236240,150.0,0.00018271,2]
[379545411,1755326236669,150.0,0.00019141,2]
[379545415,1755326315575,150.0,0.00018299,2]
[379545416,1755326315994,150.0,0.00019171,2]